Workbook

Sheet Sheet1
A1: 赫章县2025年“特岗计划”教师招聘面试成绩
A2: 序号 | B2: 姓名 | C2: 报考学段 | D2: 报考学科 | E2: 笔试准考证号 | F2: 面试考场号 | G2: 面试成绩 | H2: 备注
A3: =SUBTOTAL(103,F$3:F3)*1 -> 1 | B3: 赵豪 | C3: 初中 | D3: 语文 | E3: 20250507010201 | F3: 第01考场 | G3: 81.49
A4: =SUBTOTAL(103,F$3:F4)*1 -> 2 | B4: 叶素 | C4: 初中 | D4: 语文 | E4: 20250507010107 | F4: 第01考场 | G4: 84.58
A5: =SUBTOTAL(103,F$3:F5)*1 -> 3 | B5: 张涛 | C5: 初中 | D5: 语文 | E5: 20250507010127 | F5: 第01考场 | G5: 83.33
A6: =SUBTOTAL(103,F$3:F6)*1 -> 4 | B6: 殷能云 | C6: 初中 | D6: 语文 | E6: 20250507010102 | F6: 第01考场 | G6: 82.31
A7: =SUBTOTAL(103,F$3:F7)*1 -> 5 | B7: 费情 | C7: 初中 | D7: 语文 | E7: 20250507010203 | F7: 第01考场 | G7: 79.43
A8: =SUBTOTAL(103,F$3:F8)*1 -> 6 | B8: 马文俊 | C8: 初中 | D8: 语文 | E8: 20250507010206 | F8: 第01考场 | G8: 缺考
A9: =SUBTOTAL(103,F$3:F9)*1 -> 7 | B9: 张羽 | C9: 小学 | D9: 数学 | E9: 20250507011522 | F9: 第01考场 | G9: 82.36
A10: =SUBTOTAL(103,F$3:F10)*1 -> 8 | B10: 朱丽 | C10: 小学 | D10: 数学 | E10: 20250507011523 | F10: 第01考场 | G10: 83.80
A11: =SUBTOTAL(103,F$3:F11)*1 -> 9 | B11: 晏欢 | C11: 小学 | D11: 数学 | E11: 20250507011527 | F11: 第01考场 | G11: 84.58
A12: =SUBTOTAL(103,F$3:F12)*1 -> 10 | B12: 卢良 | C12: 小学 | D12: 数学 | E12: 20250507011525 | F12: 第01考场 | G12: 83.10
A13: =SUBTOTAL(103,F$3:F13)*1 -> 11 | B13: 王景 | C13: 小学 | D13: 数学 | E13: 20250507011526 | F13: 第01考场 | G13: 缺考
A14: =SUBTOTAL(103,F$3:F14)*1 -> 12 | B14: 彭姣 | C14: 小学 | D14: 数学 | E14: 20250507011528 | F14: 第01考场 | G14: 缺考
A15: =SUBTOTAL(103,F$3:F15)*1 -> 13 | B15: 母贵梅 | C15: 初中 | D15: 数学 | E15: 20250507011607 | F15: 第01考场 | G15: 80.14
A16: =SUBTOTAL(103,F$3:F16)*1 -> 14 | B16: 郭越城 | C16: 初中 | D16: 数学 | E16: 20250507011606 | F16: 第01考场 | G16: 83.52
A17: =SUBTOTAL(103,F$3:F17)*1 -> 15 | B17: 吴帅 | C17: 初中 | D17: 数学 | E17: 20250507011705 | F17: 第01考场 | G17: 82.26
A18: =SUBTOTAL(103,F$3:F18)*1 -> 16 | B18: 禄媛 | C18: 初中 | D18: 数学 | E18: 20250507011616 | F18: 第01考场 | G18: 79.94
A19: =SUBTOTAL(103,F$3:F19)*1 -> 17 | B19: 刘林锋 | C19: 初中 | D19: 数学 | E19: 20250507011621 | F19: 第01考场 | G19: 85.74
A20: =SUBTOTAL(103,F$3:F20)*1 -> 18 | B20: 刘春杰 | C20: 初中 | D20: 数学 | E20: 20250507011611 | F20: 第01考场 | G20: 79.48
A21: =SUBTOTAL(103,F$3:F21)*1 -> 19 | B21: 王迪 | C21: 初中 | D21: 数学 | E21: 20250507011620 | F21: 第01考场 | G21: 84.68
A22: =SUBTOTAL(103,F$3:F22)*1 -> 20 | B22: 邓勇 | C22: 初中 | D22: 数学 | E22: 20250507011625 | F22: 第01考场 | G22: 79.19
A23: =SUBTOTAL(103,F$3:F23)*1 -> 21 | B23: 吴会云 | C23: 初中 | D23: 数学 | E23: 20250507011530 | F23: 第01考场 | G23: 85.44
A24: =SUBTOTAL(103,F$3:F24)*1 -> 22 | B24: 姚宇 | C24: 初中 | D24: 数学 | E24: 20250507011609 | F24: 第01考场 | G24: 83.44
A25: =SUBTOTAL(103,F$3:F25)*1 -> 23 | B25: 杨霜 | C25: 初中 | D25: 数学 | E25: 20250507011610 | F25: 第01考场 | G25: 81.70
A26: =SUBTOTAL(103,F$3:F26)*1 -> 24 | B26: 曾浪 | C26: 初中 | D26: 数学 | E26: 20250507011626 | F26: 第01考场 | G26: 79.07
A27: =SUBTOTAL(103,F$3:F27)*1 -> 25 | B27: 许明凯 | C27: 初中 | D27: 数学 | E27: 20250507011602 | F27: 第01考场 | G27: 缺考
A28: =SUBTOTAL(103,F$3:F28)*1 -> 26 | B28: 周云兰 | C28: 初中 | D28: 数学 | E28: 20250507011605 | F28: 第01考场 | G28: 77.31
A29: =SUBTOTAL(103,F$3:F29)*1 -> 27 | B29: 黄佑发 | C29: 初中 | D29: 数学 | E29: 20250507011627 | F29: 第01考场 | G29: 80.54
A30: =SUBTOTAL(103,F$3:F30)*1 -> 28 | B30: 周曾鹏 | C30: 初中 | D30: 数学 | E30: 20250507011629 | F30: 第01考场 | G30: 81.47
A31: =SUBTOTAL(103,F$3:F31)*1 -> 29 | B31: 邓超 | C31: 初中 | D31: 数学 | E31: 20250507011628 | F31: 第01考场 | G31: 79.40
A32: =SUBTOTAL(103,F$3:F32)*1 -> 30 | B32: 程虎 | C32: 初中 | D32: 数学 | E32: 20250507011630 | F32: 第01考场 | G32: 79.78
A33: =SUBTOTAL(103,F$3:F33)*1 -> 31 | B33: 吴倩 | C33: 小学 | D33: 外语 | E33: 20250507012221 | F33: 第02考场 | G33: 83.93
A34: =SUBTOTAL(103,F$3:F34)*1 -> 32 | B34: 吴新春 | C34: 小学 | D34: 外语 | E34: 20250507011912 | F34: 第02考场 | G34: 85.47
A35: =SUBTOTAL(103,F$3:F35)*1 -> 33 | B35: 王艳 | C35: 小学 | D35: 外语 | E35: 20250507012014 | F35: 第02考场 | G35: 87.01
A36: =SUBTOTAL(103,F$3:F36)*1 -> 34 | B36: 龙婷 | C36: 小学 | D36: 外语 | E36: 20250507012018 | F36: 第02考场 | G36: 82.92
A37: =SUBTOTAL(103,F$3:F37)*1 -> 35 | B37: 谢欣 | C37: 小学 | D37: 外语 | E37: 20250507012125 | F37: 第02考场 | G37: 87.42
A38: =SUBTOTAL(103,F$3:F38)*1 -> 36 | B38: 黄小玲 | C38: 小学 | D38: 外语 | E38: 20250507012127 | F38: 第02考场 | G38: 81.66
A39: =SUBTOTAL(103,F$3:F39)*1 -> 37 | B39: 吴金元 | C39: 小学 | D39: 外语 | E39: 20250507011907 | F39: 第02考场 | G39: 84.58
A40: =SUBTOTAL(103,F$3:F40)*1 -> 38 | B40: 王娟 | C40: 小学 | D40: 外语 | E40: 20250507012225 | F40: 第02考场 | G40: 81.65
A41: =SUBTOTAL(103,F$3:F41)*1 -> 39 | B41: 刘春 | C41: 小学 | D41: 外语 | E41: 20250507011920 | F41: 第02考场 | G41: 86.12
A42: =SUBTOTAL(103,F$3:F42)*1 -> 40 | B42: 高娥 | C42: 小学 | D42: 外语 | E42: 20250507012011 | F42: 第02考场 | G42: 87.38
A43: =SUBTOTAL(103,F$3:F43)*1 -> 41 | B43: 朱雪梅 | C43: 小学 | D43: 外语 | E43: 20250507012016 | F43: 第02考场 | G43: 85.72
A44: =SUBTOTAL(103,F$3:F44)*1 -> 42 | B44: 袁雨苇 | C44: 小学 | D44: 外语 | E44: 20250507011917 | F44: 第02考场 | G44: 83.84
A45: =SUBTOTAL(103,F$3:F45)*1 -> 43 | B45: 陈兰兰 | C45: 小学 | D45: 外语 | E45: 20250507012025 | F45: 第02考场 | G45: 84.04
A46: =SUBTOTAL(103,F$3:F46)*1 -> 44 | B46: 张秋 | C46: 小学 | D46: 外语 | E46: 20250507012108 | F46: 第02考场 | G46: 81.60
A47: =SUBTOTAL(103,F$3:F47)*1 -> 45 | B47: 李春艳 | C47: 小学 | D47: 外语 | E47: 20250507012111 | F47: 第02考场 | G47: 85.22
A48: =SUBTOTAL(103,F$3:F48)*1 -> 46 | B48: 颜驰 | C48: 初中 | D48: 外语 | E48: 20250507012327 | F48: 第02考场 | G48: 79.67
A49: =SUBTOTAL(103,F$3:F49)*1 -> 47 | B49: 高梨 | C49: 初中 | D49: 外语 | E49: 20250507012406 | F49: 第02考场 | G49: 80.98
A50: =SUBTOTAL(103,F$3:F50)*1 -> 48 | B50: 王雪 | C50: 初中 | D50: 外语 | E50: 20250507012302 | F50: 第02考场 | G50: 82.38
A51: =SUBTOTAL(103,F$3:F51)*1 -> 49 | B51: 朱丽君 | C51: 初中 | D51: 外语 | E51: 20250507012310 | F51: 第02考场 | G51: 77.89
A52: =SUBTOTAL(103,F$3:F52)*1 -> 50 | B52: 刘秉耀 | C52: 初中 | D52: 外语 | E52: 20250507012321 | F52: 第02考场 | G52: 78.26
A53: =SUBTOTAL(103,F$3:F53)*1 -> 51 | B53: 朱琳 | C53: 初中 | D53: 外语 | E53: 20250507012304 | F53: 第02考场 | G53: 85.67
A54: =SUBTOTAL(103,F$3:F54)*1 -> 52 | B54: 鲁雄 | C54: 初中 | D54: 外语 | E54: 20250507012313 | F54: 第02考场 | G54: 77.81
A55: =SUBTOTAL(103,F$3:F55)*1 -> 53 | B55: 安春花 | C55: 初中 | D55: 外语 | E55: 20250507012314 | F55: 第02考场 | G55: 76.91
A56: =SUBTOTAL(103,F$3:F56)*1 -> 54 | B56: 王琪琦 | C56: 初中 | D56: 外语 | E56: 20250507012305 | F56: 第02考场 | G56: 缺考
A57: =SUBTOTAL(103,F$3:F57)*1 -> 55 | B57: 冯国鲜 | C57: 初中 | D57: 外语 | E57: 20250507012311 | F57: 第02考场 | G57: 75.89
A58: =SUBTOTAL(103,F$3:F58)*1 -> 56 | B58: 赵玉江 | C58: 初中 | D58: 生物 | E58: 20250507012412 | F58: 第02考场 | G58: 86.29
A59: =SUBTOTAL(103,F$3:F59)*1 -> 57 | B59: 彭雨婷 | C59: 初中 | D59: 生物 | E59: 20250507012413 | F59: 第02考场 | G59: 82.65
A60: =SUBTOTAL(103,F$3:F60)*1 -> 58 | B60: 龙胜丽 | C60: 初中 | D60: 生物 | E60: 20250507012415 | F60: 第02考场 | G60: 缺考
A61: =SUBTOTAL(103,F$3:F61)*1 -> 59 | B61: 胡艇 | C61: 初中 | D61: 物理 | E61: 20250507010907 | F61: 第03考场 | G61: 77.69
A62: =SUBTOTAL(103,F$3:F62)*1 -> 60 | B62: 李玉琳 | C62: 初中 | D62: 物理 | E62: 20250507010908 | F62: 第03考场 | G62: 83.56
A63: =SUBTOTAL(103,F$3:F63)*1 -> 61 | B63: 李虎 | C63: 初中 | D63: 物理 | E63: 20250507010902 | F63: 第03考场 | G63: 79.38
A64: =SUBTOTAL(103,F$3:F64)*1 -> 62 | B64: 卯杰 | C64: 初中 | D64: 物理 | E64: 20250507010918 | F64: 第03考场 | G64: 81.96
A65: =SUBTOTAL(103,F$3:F65)*1 -> 63 | B65: 田林生 | C65: 初中 | D65: 物理 | E65: 20250507010905 | F65: 第03考场 | G65: 81.57
A66: =SUBTOTAL(103,F$3:F66)*1 -> 64 | B66: 杜勇 | C66: 初中 | D66: 物理 | E66: 20250507010923 | F66: 第03考场 | G66: 82.54
A67: =SUBTOTAL(103,F$3:F67)*1 -> 65 | B67: 陶宇 | C67: 初中 | D67: 物理 | E67: 20250507011007 | F67: 第03考场 | G67: 84.87
A68: =SUBTOTAL(103,F$3:F68)*1 -> 66 | B68: 郭虎 | C68: 初中 | D68: 物理 | E68: 20250507011018 | F68: 第03考场 | G68: 81.50
A69: =SUBTOTAL(103,F$3:F69)*1 -> 67 | B69: 杨锐 | C69: 初中 | D69: 物理 | E69: 20250507010925 | F69: 第03考场 | G69: 84.70
A70: =SUBTOTAL(103,F$3:F70)*1 -> 68 | B70: 王敬 | C70: 初中 | D70: 物理 | E70: 20250507010916 | F70: 第03考场 | G70: 83.43
A71: =SUBTOTAL(103,F$3:F71)*1 -> 69 | B71: 史远 | C71: 初中 | D71: 物理 | E71: 20250507010917 | F71: 第03考场 | G71: 83.45
A72: =SUBTOTAL(103,F$3:F72)*1 -> 70 | B72: 杨娟 | C72: 初中 | D72: 物理 | E72: 20250507010915 | F72: 第03考场 | G72: 82.52
A73: =SUBTOTAL(103,F$3:F73)*1 -> 71 | B73: 马关荣 | C73: 初中 | D73: 物理 | E73: 20250507011011 | F73: 第03考场 | G73: 85.64
A74: =SUBTOTAL(103,F$3:F74)*1 -> 72 | B74: 罗茂 | C74: 初中 | D74: 物理 | E74: 20250507010930 | F74: 第03考场 | G74: 81.74
A75: =SUBTOTAL(103,F$3:F75)*1 -> 73 | B75: 罗宇杰 | C75: 初中 | D75: 物理 | E75: 20250507010920 | F75: 第03考场 | G75: 79.76
A76: =SUBTOTAL(103,F$3:F76)*1 -> 74 | B76: 高家仙 | C76: 初中 | D76: 物理 | E76: 20250507011002 | F76: 第03考场 | G76: 79.86
A77: =SUBTOTAL(103,F$3:F77)*1 -> 75 | B77: 李承宇 | C77: 初中 | D77: 物理 | E77: 20250507011006 | F77: 第03考场 | G77: 缺考
A78: =SUBTOTAL(103,F$3:F78)*1 -> 76 | B78: 金崇裕 | C78: 初中 | D78: 物理 | E78: 20250507010904 | F78: 第03考场 | G78: 83.75
A79: =SUBTOTAL(103,F$3:F79)*1 -> 77 | B79: 马秤红 | C79: 初中 | D79: 物理 | E79: 20250507010914 | F79: 第03考场 | G79: 75.94
A80: =SUBTOTAL(103,F$3:F80)*1 -> 78 | B80: 许敬松 | C80: 初中 | D80: 物理 | E80: 20250507011010 | F80: 第03考场 | G80: 缺考
A81: =SUBTOTAL(103,F$3:F81)*1 -> 79 | B81: 宁友智 | C81: 初中 | D81: 物理 | E81: 20250507011017 | F81: 第03考场 | G81: 缺考
A82: =SUBTOTAL(103,F$3:F82)*1 -> 80 | B82: 段平满 | C82: 初中 | D82: 物理 | E82: 20250507011003 | F82: 第03考场 | G82: 缺考
A83: =SUBTOTAL(103,F$3:F83)*1 -> 81 | B83: 邹成跃 | C83: 初中 | D83: 物理 | E83: 20250507011014 | F83: 第03考场 | G83: 82.63
A84: =SUBTOTAL(103,F$3:F84)*1 -> 82 | B84: 邓桂飞 | C84: 初中 | D84: 物理 | E84: 20250507010911 | F84: 第03考场 | G84: 缺考
A85: =SUBTOTAL(103,F$3:F85)*1 -> 83 | B85: 锁美玲 | C85: 初中 | D85: 化学 | E85: 20250507011804 | F85: 第03考场 | G85: 82.89
A86: =SUBTOTAL(103,F$3:F86)*1 -> 84 | B86: 洪梅 | C86: 初中 | D86: 化学 | E86: 20250507011728 | F86: 第03考场 | G86: 82.97
A87: =SUBTOTAL(103,F$3:F87)*1 -> 85 | B87: 刘彩艳 | C87: 初中 | D87: 化学 | E87: 20250507011729 | F87: 第03考场 | G87: 84.32
A88: =SUBTOTAL(103,F$3:F88)*1 -> 86 | B88: 赵松 | C88: 初中 | D88: 化学 | E88: 20250507011712 | F88: 第03考场 | G88: 77.37
A89: =SUBTOTAL(103,F$3:F89)*1 -> 87 | B89: 徐田琼 | C89: 初中 | D89: 化学 | E89: 20250507011726 | F89: 第03考场 | G89: 80.07
A90: =SUBTOTAL(103,F$3:F90)*1 -> 88 | B90: 叶国彩 | C90: 初中 | D90: 化学 | E90: 20250507011806 | F90: 第03考场 | G90: 缺考
A91: =SUBTOTAL(103,F$3:F91)*1 -> 89 | B91: 顾月飞 | C91: 初中 | D91: 化学 | E91: 20250507011815 | F91: 第03考场 | G91: 79.94
A92: =SUBTOTAL(103,F$3:F92)*1 -> 90 | B92: 侯倩 | C92: 初中 | D92: 化学 | E92: 20250507011805 | F92: 第03考场 | G92: 84.23
A93: =SUBTOTAL(103,F$3:F93)*1 -> 91 | B93: 张文彩 | C93: 初中 | D93: 化学 | E93: 20250507011823 | F93: 第03考场 | G93: 78.16
A94: =SUBTOTAL(103,F$3:F94)*1 -> 92 | B94: 张前香 | C94: 小学 | D94: 体育与健康 | E94: 20250507011413 | F94: 第04考场 | G94: 82.79
A95: =SUBTOTAL(103,F$3:F95)*1 -> 93 | B95: 唐凯 | C95: 小学 | D95: 体育与健康 | E95: 20250507011512 | F95: 第04考场 | G95: 80.83
A96: =SUBTOTAL(103,F$3:F96)*1 -> 94 | B96: 安永 | C96: 小学 | D96: 体育与健康 | E96: 20250507011420 | F96: 第04考场 | G96: 82.54
A97: =SUBTOTAL(103,F$3:F97)*1 -> 95 | B97: 熊天欢 | C97: 小学 | D97: 体育与健康 | E97: 20250507011417 | F97: 第04考场 | G97: 85.08
A98: =SUBTOTAL(103,F$3:F98)*1 -> 96 | B98: 杨金友 | C98: 小学 | D98: 体育与健康 | E98: 20250507011411 | F98: 第04考场 | G98: 82.83
A99: =SUBTOTAL(103,F$3:F99)*1 -> 97 | B99: 雷敏龙 | C99: 小学 | D99: 体育与健康 | E99: 20250507011416 | F99: 第04考场 | G99: 80.98
A100: =SUBTOTAL(103,F$3:F100)*1 -> 98 | B100: 邓浪 | C100: 小学 | D100: 体育与健康 | E100: 20250507011430 | F100: 第04考场 | G100: 79.43
A101: =SUBTOTAL(103,F$3:F101)*1 -> 99 | B101: 张雪 | C101: 小学 | D101: 体育与健康 | E101: 20250507011414 | F101: 第04考场 | G101: 80.69
A102: =SUBTOTAL(103,F$3:F102)*1 -> 100 | B102: 沈成奎 | C102: 小学 | D102: 体育与健康 | E102: 20250507011404 | F102: 第04考场 | G102: 79.40
A103: =SUBTOTAL(103,F$3:F103)*1 -> 101 | B103: 朱杰 | C103: 小学 | D103: 体育与健康 | E103: 20250507011501 | F103: 第04考场 | G103: 82.58
A104: =SUBTOTAL(103,F$3:F104)*1 -> 102 | B104: 李厚鹏 | C104: 小学 | D104: 体育与健康 | E104: 20250507011329 | F104: 第04考场 | G104: 80.37
A105: =SUBTOTAL(103,F$3:F105)*1 -> 103 | B105: 梁绪江 | C105: 小学 | D105: 体育与健康 | E105: 20250507011403 | F105: 第04考场 | G105: 缺考
A106: =SUBTOTAL(103,F$3:F106)*1 -> 104 | B106: 彭钊军 | C106: 小学 | D106: 体育与健康 | E106: 20250507011502 | F106: 第04考场 | G106: 缺考
A107: =SUBTOTAL(103,F$3:F107)*1 -> 105 | B107: 朱卫龙 | C107: 小学 | D107: 体育与健康 | E107: 20250507011520 | F107: 第04考场 | G107: 缺考
A108: =SUBTOTAL(103,F$3:F108)*1 -> 106 | B108: 严鑫 | C108: 初中 | D108: 体育与健康 | E108: 20250507011314 | F108: 第04考场 | G108: 85.91
A109: =SUBTOTAL(103,F$3:F109)*1 -> 107 | B109: 吴超 | C109: 初中 | D109: 体育与健康 | E109: 20250507011320 | F109: 第04考场 | G109: 83.43
A110: =SUBTOTAL(103,F$3:F110)*1 -> 108 | B110: 柏洪美 | C110: 初中 | D110: 体育与健康 | E110: 20250507011316 | F110: 第04考场 | G110: 80.77
A111: =SUBTOTAL(103,F$3:F111)*1 -> 109 | B111: 帅宗毕 | C111: 初中 | D111: 体育与健康 | E111: 20250507011327 | F111: 第04考场 | G111: 81.90
A112: =SUBTOTAL(103,F$3:F112)*1 -> 110 | B112: 余颗平 | C112: 初中 | D112: 体育与健康 | E112: 20250507011315 | F112: 第04考场 | G112: 缺考
A113: =SUBTOTAL(103,F$3:F113)*1 -> 111 | B113: 赵付松 | C113: 初中 | D113: 体育与健康 | E113: 20250507011313 | F113: 第04考场 | G113: 81.12
A114: =SUBTOTAL(103,F$3:F114)*1 -> 112 | B114: 安阳 | C114: 初中 | D114: 体育与健康 | E114: 20250507011321 | F114: 第04考场 | G114: 缺考
A115: =SUBTOTAL(103,F$3:F115)*1 -> 113 | B115: 常国艳 | C115: 初中 | D115: 心理健康 | E115: 20250507012512 | F115: 第04考场 | G115: 81.66
A116: =SUBTOTAL(103,F$3:F116)*1 -> 114 | B116: 杨彬花 | C116: 初中 | D116: 心理健康 | E116: 20250507012508 | F116: 第04考场 | G116: 86.21
A117: =SUBTOTAL(103,F$3:F117)*1 -> 115 | B117: 陈正粉 | C117: 初中 | D117: 心理健康 | E117: 20250507012513 | F117: 第04考场 | G117: 84.48
A118: =SUBTOTAL(103,F$3:F118)*1 -> 116 | B118: 徐浪 | C118: 初中 | D118: 心理健康 | E118: 20250507012503 | F118: 第04考场 | G118: 80.30
A119: =SUBTOTAL(103,F$3:F119)*1 -> 117 | B119: 刘云 | C119: 初中 | D119: 心理健康 | E119: 20250507012509 | F119: 第04考场 | G119: 83.60
A120: =SUBTOTAL(103,F$3:F120)*1 -> 118 | B120: 王亚菊 | C120: 初中 | D120: 心理健康 | E120: 20250507012501 | F120: 第04考场 | G120: 80.67
A121: =SUBTOTAL(103,F$3:F121)*1 -> 119 | B121: 岳耀 | C121: 初中 | D121: 心理健康 | E121: 20250507012506 | F121: 第04考场 | G121: 77.86
A122: =SUBTOTAL(103,F$3:F122)*1 -> 120 | B122: 安琪 | C122: 初中 | D122: 心理健康 | E122: 20250507012511 | F122: 第04考场 | G122: 缺考
A123: =SUBTOTAL(103,F$3:F123)*1 -> 121 | B123: 邓尚雄 | C123: 初中 | D123: 心理健康 | E123: 20250507012502 | F123: 第04考场 | G123: 缺考
A124: =SUBTOTAL(103,F$3:F124)*1 -> 122 | B124: 卯明荣 | C124: 小学 | D124: 艺术（美术） | E124: 20250507010302 | F124: 第05考场 | G124: 81.12
A125: =SUBTOTAL(103,F$3:F125)*1 -> 123 | B125: 安胜祝 | C125: 小学 | D125: 艺术（美术） | E125: 20250507010728 | F125: 第05考场 | G125: 79.86
A126: =SUBTOTAL(103,F$3:F126)*1 -> 124 | B126: 张小原 | C126: 小学 | D126: 艺术（美术） | E126: 20250507010713 | F126: 第05考场 | G126: 79.15
A127: =SUBTOTAL(103,F$3:F127)*1 -> 125 | B127: 邓慧敏 | C127: 小学 | D127: 艺术（美术） | E127: 20250507010312 | F127: 第05考场 | G127: 82.04
A128: =SUBTOTAL(103,F$3:F128)*1 -> 126 | B128: 张玥 | C128: 小学 | D128: 艺术（美术） | E128: 20250507010409 | F128: 第05考场 | G128: 78.01
A129: =SUBTOTAL(103,F$3:F129)*1 -> 127 | B129: 盛祝 | C129: 小学 | D129: 艺术（美术） | E129: 20250507010320 | F129: 第05考场 | G129: 79.23
A130: =SUBTOTAL(103,F$3:F130)*1 -> 128 | B130: 代雄 | C130: 小学 | D130: 艺术（美术） | E130: 20250507010609 | F130: 第05考场 | G130: 78.15
A131: =SUBTOTAL(103,F$3:F131)*1 -> 129 | B131: 胡丹 | C131: 小学 | D131: 艺术（美术） | E131: 20250507010704 | F131: 第05考场 | G131: 75.43
A132: =SUBTOTAL(103,F$3:F132)*1 -> 130 | B132: 胡梅 | C132: 小学 | D132: 艺术（美术） | E132: 20250507010413 | F132: 第05考场 | G132: 78.63
A133: =SUBTOTAL(103,F$3:F133)*1 -> 131 | B133: 王泽丽 | C133: 小学 | D133: 艺术（美术） | E133: 20250507010421 | F133: 第05考场 | G133: 79.45
A134: =SUBTOTAL(103,F$3:F134)*1 -> 132 | B134: 吴启红 | C134: 小学 | D134: 艺术（美术） | E134: 20250507010815 | F134: 第05考场 | G134: 缺考
A135: =SUBTOTAL(103,F$3:F135)*1 -> 133 | B135: 周林玲 | C135: 小学 | D135: 艺术（美术） | E135: 20250507010313 | F135: 第05考场 | G135: 78.63
A136: =SUBTOTAL(103,F$3:F136)*1 -> 134 | B136: 蔡丹 | C136: 小学 | D136: 艺术（美术） | E136: 20250507010321 | F136: 第05考场 | G136: 76.61
A137: =SUBTOTAL(103,F$3:F137)*1 -> 135 | B137: 熊兴婷 | C137: 小学 | D137: 艺术（美术） | E137: 20250507010512 | F137: 第05考场 | G137: 78.19
A138: =SUBTOTAL(103,F$3:F138)*1 -> 136 | B138: 王传伟 | C138: 小学 | D138: 艺术（美术） | E138: 20250507010612 | F138: 第05考场 | G138: 82.42
A139: =SUBTOTAL(103,F$3:F139)*1 -> 137 | B139: 胡盛 | C139: 初中 | D139: 艺术（美术） | E139: 20250507010220 | F139: 第05考场 | G139: 79.75
A140: =SUBTOTAL(103,F$3:F140)*1 -> 138 | B140: 朱璐 | C140: 初中 | D140: 艺术（美术） | E140: 20250507010223 | F140: 第05考场 | G140: 缺考
A141: =SUBTOTAL(103,F$3:F141)*1 -> 139 | B141: 汤玉蓉 | C141: 初中 | D141: 艺术（美术） | E141: 20250507010221 | F141: 第05考场 | G141: 76.78
A142: =SUBTOTAL(103,F$3:F142)*1 -> 140 | B142: 许珠 | C142: 小学 | D142: 艺术（音乐） | E142: 20250507011110 | F142: 第05考场 | G142: 80.37
A143: =SUBTOTAL(103,F$3:F143)*1 -> 141 | B143: 孔厅 | C143: 小学 | D143: 艺术（音乐） | E143: 20250507011211 | F143: 第05考场 | G143: 78.25
A144: =SUBTOTAL(103,F$3:F144)*1 -> 142 | B144: 毛群 | C144: 小学 | D144: 艺术（音乐） | E144: 20250507011203 | F144: 第05考场 | G144: 78.86
A145: =SUBTOTAL(103,F$3:F145)*1 -> 143 | B145: 徐清 | C145: 小学 | D145: 艺术（音乐） | E145: 20250507011103 | F145: 第05考场 | G145: 81.83
A146: =SUBTOTAL(103,F$3:F146)*1 -> 144 | B146: 江旭 | C146: 小学 | D146: 艺术（音乐） | E146: 20250507011109 | F146: 第05考场 | G146: 78.81
A147: =SUBTOTAL(103,F$3:F147)*1 -> 145 | B147: 陈丽 | C147: 小学 | D147: 艺术（音乐） | E147: 20250507011030 | F147: 第05考场 | G147: 77.36
A148: =SUBTOTAL(103,F$3:F148)*1 -> 146 | B148: 安东 | C148: 小学 | D148: 艺术（音乐） | E148: 20250507011027 | F148: 第05考场 | G148: 76.45
A149: =SUBTOTAL(103,F$3:F149)*1 -> 147 | B149: 马艳红 | C149: 小学 | D149: 艺术（音乐） | E149: 20250507011113 | F149: 第05考场 | G149: 79.63
A150: =SUBTOTAL(103,F$3:F150)*1 -> 148 | B150: 王帅 | C150: 小学 | D150: 艺术（音乐） | E150: 20250507011023 | F150: 第05考场 | G150: 77.36
A151: =SUBTOTAL(103,F$3:F151)*1 -> 149 | B151: 张梦莲 | C151: 小学 | D151: 艺术（音乐） | E151: 20250507011028 | F151: 第05考场 | G151: 76.09
A152: =SUBTOTAL(103,F$3:F152)*1 -> 150 | B152: 蒋英 | C152: 小学 | D152: 艺术（音乐） | E152: 20250507011204 | F152: 第05考场 | G152: 77.03
A153: =SUBTOTAL(103,F$3:F153)*1 -> 151 | B153: 韩慕琴 | C153: 小学 | D153: 艺术（音乐） | E153: 20250507011101 | F153: 第05考场 | G153: 79.15
A154: =SUBTOTAL(103,F$3:F154)*1 -> 152 | B154: 陶玉芳 | C154: 小学 | D154: 艺术（音乐） | E154: 20250507011118 | F154: 第05考场 | G154: 缺考
A155: =SUBTOTAL(103,F$3:F155)*1 -> 153 | B155: 杨兰 | C155: 初中 | D155: 艺术（音乐） | E155: 20250507011309 | F155: 第05考场 | G155: 82.67
A156: =SUBTOTAL(103,F$3:F156)*1 -> 154 | B156: 朱兰 | C156: 初中 | D156: 艺术（音乐） | E156: 20250507011229 | F156: 第05考场 | G156: 79.98
A157: =SUBTOTAL(103,F$3:F157)*1 -> 155 | B157: 邓晓微 | C157: 初中 | D157: 艺术（音乐） | E157: 20250507011302 | F157: 第05考场 | G157: 78.86
